Workbook

Sheet Sheet1
A1: USDA - RUS | C1: Assistance to High Energy Cost Rural Communities | I1: OMB No.
J2: 0572-0136
A3: SUMMARY OF INFORMATION COLLECTION | I3: Date Prepared
I4: 2014-02-19
A5: INSTRUCTIONS: | D5: > | G5: (h) TOTAL | I5: (k) TOTAL
A6: Use this form when a single information collection document involves multiple reporting and | D6: > | E6: - | F6: = (e) Average | G6: - | H6: = (g) Average | I6: - | J6: = (j) Average
A7: recordkeeping requirements. | D7: > | G7: (f) TOTAL | I7: (i) TOTAL
A8: IDENTIFICATION OF REPORTING AND RECORDKEEPING REQUIREMENTS | G8: ANNUAL BURDEN
C9: FORM | F9: REPORTS | J9: RECORDS
C10: NO(s) | D10: NO. OF | E10: NO. OF | F10: TOTAL | G10: HOURS | H10: TOTAL | I10: NO. OF | J10: ANNUAL | K10: TOTAL
A11: SECTION OF | C11: (If "none" | D11: RESPON- | E11: RESPONSES | F11: ANNUAL | G11: PER | H11: HOURS | I11: RECORD- | J11: HOURS PER | K11: RECORD-
A12: REGULATIONS | B12: DESCRIPTION | C12: so state) | D12: DENTS | E12: PER | F12: RESPONSES | G12: RESPONSE | H12: (Col. f & g) | I12: KEEPERS | J12: RECORD- | K12: KEEPING
E13: RESPOND- | F13: (Col. d & e) | J13: KEEPER | K13: HOURS
E14: DENT | K14: (Col. i & j)
A15: (a) | B15: (b) | C15: (c) | D15: (d) | E15: e | F15: (f) | G15: (g) | H15: (h) | I15: (i) | J15: (j) | K15: (k)
B16: ITEMS APPROVED UNDER THIS COLLECTION
B17: Narrative Grant Proposal Application | C17: Non-Form | D17: 60 | E17: 1.00 | F17: =SUM(D17*E17) -> 60 | G17: 10 | H17: =SUM(F17*G17) -> 600.00
B18: RUS Environmental Profile | C18: Non-Form | D18: 60 | E18: 1.00 | F18: =SUM(D18*E18) -> 60 | G18: 1 | H18: =SUM(F18*G18) -> 60.00
B19: Grant Award and Post Award (Selected from 60 applicant respondents)
B20: Grant Agreement | C20: Non-Form | D20: 12 | E20: 1.00 | F20: =SUM(D20*E20) -> 12 | G20: 1 | H20: =SUM(F20*G20) -> 12.00
B21: Performance Reports | C21: Non-Form | D21: 40 | E21: 4.00 | F21: =SUM(D21*E21) -> 160 | G21: 2 | H21: =SUM(F21*G21) -> 320.00
B22: Final Performance Report | C22: Non-Form | D22: 12 | E22: 1.00 | F22: =SUM(D22*E22) -> 12 | G22: 5.0 | H22: =SUM(F22*G22) -> 60.00
B23: Recordkeeping Requirements | C23: Non-Form | I23: 40 | J23: 3 | K23: 120
B24: Subtotal this Collection | D24: 100 | F24: =SUM(F17:F23) -> 304 | H24: =SUM(H17:H23) -> 1,052 | I24: =SUM(I17:I23) -> 40 | K24: =SUM(K17:K23) -> 120
B25: TOTALS | F25: =SUM(F24+I24) -> 344 | H25: =SUM(H24+K24) -> 1,172
B27: FORMS APPROVED UNDER OTHER COLLECTIONS
B28: Application for Federal Assistance | C28: SF-424 | D28: 60 | E28: 1.00 | F28: =SUM(D28*E28) -> 60 | G28: 0.75 | H28: =SUM(F28*G28) -> 45.00
B29: Budget Information Non-Construction Programs or | C29: SF-424A | D29: 60 | E29: 1.00 | F29: =SUM(D29*E29) -> 60 | G29: 1 | H29: =SUM(G29*F29) -> 60.00
B30: Budget Information Construction Programs | C30: SF-424C
B31: Assurances Non-Construction Programs or | C31: SF-424B | D31: 60 | E31: 1.00 | F31: =SUM(D31*E31) -> 60 | G31: 0.25 | H31: =SUM(F31*G31) -> 15.00
B32: Assurances Construction Programs | C32: SF-424D
B33: Assurance Re: Felony Conviction (0505-0025) | C33: AD-3031 | D33: 60 | E33: 1.00 | F33: =SUM(D33*E33) -> 60 | G33: 0.05 | H33: =SUM(F33*G33) -> 3.00
J34: Page __1__ of __2__
B35: Letter of Intent (0575-0015) | C35: RD 1942-46 | D35: 12 | E35: 1.00 | F35: =SUM(D35*E35) -> 12 | G35: 1.00 | H35: =SUM(F35*G35) -> 12.00
B36: Certification Regarding Debarment, Suspension, etc. | D36: 60 | E36: 1.00 | F36: =SUM(D36*E36) -> 60 | G36: 0.05 | H36: =SUM(F36*G36) -> 3.00
B37: Disclosure of Lobbying Activities | C37: SF-LLL | D37: 60 | E37: 1.00 | F37: =SUM(D37*E37) -> 60 | G37: 0.17 | H37: =SUM(F37*G37) -> 10.20
B38: Post Award
B39: Federal Financial Report | C39: SF-425 | D39: 40 | E39: 4.00 | F39: =SUM(D39*E39) -> 160 | G39: 1.50 | H39: =SUM(F39*G39) -> 240.00
B40: Request for Reimbursement or Advance of Funds of | C40: SF-270 | D40: 40 | E40: 4.00 | F40: =SUM(D40*E40) -> 160 | G40: 1.00 | H40: =SUM(F40*G40) -> 160.00
B41: Outlay Report and Request for Reimbursement (Const.) | C41: SF-271 | G41: 1
A43: RUS Form 36 (07-91) | J43: Page __2__ of __2__

Sheet Sheet2

Sheet Sheet3
